[Event "***Titled Tuesday 3|2 Blitz"]
[Site "Chess.com"]
[Date "2017.02.07"]
[Round "6"]
[White "Feegus"]
[Black "Rumpel-VK"]
[Result "1-0"]
[WhiteElo "2374"]
[BlackElo "2417"]
[TimeControl "180+2"]
[EndTime "14:28:24 PST"]
[Termination "Feegus won by resignation"]

1. Nf3 {[%clk 0:03:02]} 1... f5 {[%clk 0:02:59.1]} 2. g3 {[%clk 0:03:03.3]} 2...
Nf6 {[%clk 0:02:58.2]} 3. Bg2 {[%clk 0:03:04.5]} 3... d6 {[%clk 0:02:58.3]} 4.
O-O {[%clk 0:03:05.7]} 4... e5 {[%clk 0:02:59]} 5. d3 {[%clk 0:03:07.1]} 5... g6
{[%clk 0:02:58.3]} 6. c4 {[%clk 0:03:08.5]} 6... Bg7 {[%clk 0:02:59.2]} 7. Nc3
{[%clk 0:03:10.2]} 7... O-O {[%clk 0:02:59.7]} 8. Rb1 {[%clk 0:03:11.6]} 8...
Nc6 {[%clk 0:02:57.4]} 9. Nd2 {[%clk 0:03:13]} 9... f4 {[%clk 0:02:54.6]} 10. b4
{[%clk 0:03:13.1]} 10... g5 {[%clk 0:02:52.2]} 11. b5 {[%clk 0:03:12.2]} 11...
Ne7 {[%clk 0:02:52.8]} 12. Qa4 {[%clk 0:03:11.2]} 12... h5 {[%clk 0:02:48.8]}
13. Qa3 {[%clk 0:03:12.1]} 13... h4 {[%clk 0:02:41.4]} 14. b6 {[%clk 0:03:08.3]}
14... cxb6 {[%clk 0:02:34.6]} 15. Nb5 {[%clk 0:03:09.3]} 15... h3 {[%clk
0:02:30.2]} 16. Bh1 {[%clk 0:03:09.9]} 16... d5 {[%clk 0:02:28.5]} 17. Qd6
{[%clk 0:02:49.6]} 17... Qxd6 {[%clk 0:02:22.2]} 18. Nxd6 {[%clk 0:02:50.6]}
18... Bg4 {[%clk 0:02:18.9]} 19. Re1 {[%clk 0:02:42.4]} 19... Rfd8 {[%clk
0:02:17.9]} 20. Ba3 {[%clk 0:02:32.3]} 20... Rd7 {[%clk 0:02:14]} 21. cxd5
{[%clk 0:02:02.6]} 21... Nexd5 {[%clk 0:02:11.7]} 22. N2e4 {[%clk 0:02:03.5]}
22... Nxe4 {[%clk 0:02:10.9]} 23. Nxe4 {[%clk 0:01:56.6]} 23... Rad8 {[%clk
0:02:02.4]} 24. Rbc1 {[%clk 0:01:52.8]} 24... Bh6 {[%clk 0:01:56.4]} 25. Bb2
{[%clk 0:01:37.5]} 25... Re8 {[%clk 0:01:55]} 26. Ba3 {[%clk 0:01:19.3]} 26...
fxg3 {[%clk 0:01:48.3]} 27. hxg3 {[%clk 0:01:08]} 27... Red8 {[%clk 0:01:38]}
28. Bb2 {[%clk 0:01:08.1]} 28... Re7 {[%clk 0:01:33.4]} 29. Ba3 {[%clk
0:01:06.3]} 29... Re6 {[%clk 0:01:32]} 30. Rb1 {[%clk 0:00:44.6]} 30... Rc6
{[%clk 0:01:25.5]} 31. Rb5 {[%clk 0:00:41.8]} 31... Be6 {[%clk 0:01:19.4]} 32.
Rc1 {[%clk 0:00:33.4]} 32... Kg7 {[%clk 0:01:13.3]} 33. Kh2 {[%clk 0:00:26.9]}
33... g4 {[%clk 0:01:13]} 34. e3 {[%clk 0:00:19.4]} 34... Kg6 {[%clk 0:01:08.2]}
35. Bb2 {[%clk 0:00:16.5]} 35... Rxc1 {[%clk 0:01:06.9]} 36. Bxc1 {[%clk
0:00:17.6]} 36... Rc8 {[%clk 0:01:05.8]} 37. Bd2 {[%clk 0:00:17.8]} 37... Rc2
{[%clk 0:01:03.4]} 38. Rb1 {[%clk 0:00:14.3]} 38... Rxa2 {[%clk 0:01:00.5]} 39.
Rd1 {[%clk 0:00:15.3]} 39... Nf6 {[%clk 0:00:59]} 40. Nc3 {[%clk 0:00:15.2]}
40... Rc2 {[%clk 0:00:57.9]} 41. Ne4 {[%clk 0:00:09.6]} 41... Nxe4 {[%clk
0:00:56.5]} 42. Bxe4+ {[%clk 0:00:05.9]} 42... Bf5 {[%clk 0:00:55.1]} 43. Bxb7
{[%clk 0:00:07.6]} 43... Bxd3 {[%clk 0:00:54]} 44. Kg1 {[%clk 0:00:08.1]} 44...
Be2 {[%clk 0:00:54.3]} 45. Be4+ {[%clk 0:00:06.5]} 45... Kf6 {[%clk 0:00:54.7]}
46. Bxc2 {[%clk 0:00:08]} 46... Bxd1 {[%clk 0:00:54.6]} 47. Bxd1 {[%clk
0:00:09.3]} 47... Bf8 {[%clk 0:00:44.2]} 48. Bxg4 {[%clk 0:00:09.2]} 48... b5
{[%clk 0:00:41.7]} 49. Bxh3 {[%clk 0:00:07.6]} 49... b4 {[%clk 0:00:38.3]} 50.
Bg2 {[%clk 0:00:04.5]} 50... Kf5 {[%clk 0:00:33.7]} 51. Bd5 {[%clk 0:00:05.1]}
51... e4 {[%clk 0:00:29]} 52. f3 {[%clk 0:00:05.7]} 52... exf3 {[%clk
0:00:25.8]} 53. e4+ {[%clk 0:00:07]} 53... Kg4 {[%clk 0:00:22.2]} 54. Bf4 {[%clk
0:00:08.2]} 54... Bc5+ {[%clk 0:00:16.9]} 55. Kh2 {[%clk 0:00:06.4]} 55... a5
{[%clk 0:00:13.3]} 56. Be6+ {[%clk 0:00:07.3]} 56... Kh5 {[%clk 0:00:13.8]} 57.
g4+ {[%clk 0:00:08.4]} 57... Kg6 {[%clk 0:00:11]} 58. Bb3 {[%clk 0:00:08]} 58...
f2 {[%clk 0:00:06.8]} 59. Kg2 {[%clk 0:00:08.9]} 59... Bd4 {[%clk 0:00:03.5]}
60. Bg3 {[%clk 0:00:09.4]} 60... Kg5 {[%clk 0:00:03.7]} 61. Bxf2 {[%clk
0:00:03.3]} 61... Bc3 {[%clk 0:00:03.3]} 62. Kf3 {[%clk 0:00:03.8]} 62... Be5
{[%clk 0:00:02.9]} 63. Be3+ {[%clk 0:00:05.1]} 63... Kf6 {[%clk 0:00:03.4]} 64.
Bf4 {[%clk 0:00:06.3]} 64... Bxf4 {[%clk 0:00:03.9]} 65. Kxf4 {[%clk 0:00:07.6]}
1-0

[Event "***Titled Tuesday 3|2 Blitz"]
[Site "Chess.com"]
[Date "2017.02.07"]
[Round "6"]
[White "jb2mix"]
[Black "alekroth64"]
[Result "0-1"]
[WhiteElo "2390"]
[BlackElo "2230"]
[TimeControl "180+2"]
[EndTime "14:28:25 PST"]
[Termination "alekroth64 won on time"]

1. d4 {[%clk 0:03:02]} 1... Nf6 {[%clk 0:02:58.7]} 2. c4 {[%clk 0:03:00.3]} 2...
e6 {[%clk 0:02:59.2]} 3. Nf3 {[%clk 0:03:00.1]} 3... b6 {[%clk 0:02:58.3]} 4. g3
{[%clk 0:03:00.4]} 4... Bb7 {[%clk 0:02:58]} 5. Bg2 {[%clk 0:03:00.8]} 5... Be7
{[%clk 0:02:57.2]} 6. O-O {[%clk 0:03:02.3]} 6... O-O {[%clk 0:02:58.2]} 7. Re1
{[%clk 0:03:02.8]} 7... c5 {[%clk 0:02:46.4]} 8. d5 {[%clk 0:03:02.2]} 8... exd5
{[%clk 0:02:47.3]} 9. Nh4 {[%clk 0:02:58.6]} 9... g6 {[%clk 0:02:43.1]} 10. cxd5
{[%clk 0:02:57.7]} 10... d6 {[%clk 0:02:44.1]} 11. Nc3 {[%clk 0:02:55.4]} 11...
Re8 {[%clk 0:02:43]} 12. a4 {[%clk 0:02:50.4]} 12... a6 {[%clk 0:02:38]} 13. Nf3
{[%clk 0:02:41.8]} 13... Nbd7 {[%clk 0:02:38.2]} 14. e4 {[%clk 0:02:23.3]} 14...
Bf8 {[%clk 0:02:27.6]} 15. Bf4 {[%clk 0:02:16.9]} 15... Nh5 {[%clk 0:02:27.5]}
16. Bg5 {[%clk 0:02:17.1]} 16... Qc7 {[%clk 0:02:12.8]} 17. Nd2 {[%clk
0:02:09.9]} 17... Bg7 {[%clk 0:02:08.4]} 18. Nc4 {[%clk 0:01:57.3]} 18... Ne5
{[%clk 0:02:05.6]} 19. Nxe5 {[%clk 0:01:56.1]} 19... Rxe5 {[%clk 0:02:06.5]} 20.
Be3 {[%clk 0:01:55.6]} 20... Rae8 {[%clk 0:02:00.6]} 21. Rc1 {[%clk 0:01:54.8]}
21... R5e7 {[%clk 0:01:57.5]} 22. f4 {[%clk 0:01:35.3]} 22... Bc8 {[%clk
0:01:50.5]} 23. e5 {[%clk 0:01:32.6]} 23... Qd8 {[%clk 0:01:33.2]} 24. g4 {[%clk
0:00:58.4]} 24... dxe5 {[%clk 0:01:31.8]} 25. gxh5 {[%clk 0:00:54.3]} 25... exf4
{[%clk 0:01:32.3]} 26. Bf2 {[%clk 0:00:53.9]} 26... Rxe1+ {[%clk 0:01:21.6]} 27.
Bxe1 {[%clk 0:00:55.8]} 27... Qg5 {[%clk 0:01:12.1]} 28. h4 {[%clk 0:00:47.4]}
28... Qe5 {[%clk 0:00:48.3]} 29. hxg6 {[%clk 0:00:44.5]} 29... hxg6 {[%clk
0:00:48.3]} 30. Bf2 {[%clk 0:00:45.5]} 30... Bf5 {[%clk 0:00:33.2]} 31. Qd2
{[%clk 0:00:42.3]} 31... Qd6 {[%clk 0:00:27.7]} 32. Re1 {[%clk 0:00:41.5]} 32...
Rxe1+ {[%clk 0:00:25.3]} 33. Qxe1 {[%clk 0:00:43.4]} 33... c4 {[%clk 0:00:21.4]}
34. Qe8+ {[%clk 0:00:43.7]} 34... Bf8 {[%clk 0:00:15.7]} 35. Be4 {[%clk
0:00:23.9]} 35... Bd7 {[%clk 0:00:13.8]} 36. Qd8 {[%clk 0:00:23.5]} 36... b5
{[%clk 0:00:14.6]} 37. axb5 {[%clk 0:00:23.5]} 37... axb5 {[%clk 0:00:14.8]} 38.
h5 {[%clk 0:00:23.9]} 38... Qe7 {[%clk 0:00:12.3]} 39. Qxe7 {[%clk 0:00:22.1]}
39... Bxe7 {[%clk 0:00:14.2]} 40. hxg6 {[%clk 0:00:23.1]} 40... f5 {[%clk
0:00:15.1]} 41. Bf3 {[%clk 0:00:22.7]} 41... Kg7 {[%clk 0:00:16.1]} 42. Bd4+
{[%clk 0:00:20.9]} 42... Kxg6 {[%clk 0:00:15.7]} 43. Be5 {[%clk 0:00:22.5]}
43... Kg5 {[%clk 0:00:15]} 44. Ne2 {[%clk 0:00:22.5]} 44... Bc5+ {[%clk
0:00:11.8]} 45. Kf1 {[%clk 0:00:20.7]} 45... Be3 {[%clk 0:00:11.2]} 46. d6
{[%clk 0:00:20.2]} 46... b4 {[%clk 0:00:11]} 47. Nd4 {[%clk 0:00:20.2]} 47... c3
{[%clk 0:00:08]} 48. bxc3 {[%clk 0:00:21.2]} 48... bxc3 {[%clk 0:00:08.8]} 49.
Nc2 {[%clk 0:00:22.4]} 49... Bd2 {[%clk 0:00:09.7]} 50. Ke2 {[%clk 0:00:20.1]}
50... Bb5+ {[%clk 0:00:10.4]} 51. Kd1 {[%clk 0:00:21.2]} 51... Kh4 {[%clk
0:00:11]} 52. Bd5 {[%clk 0:00:19.3]} 52... Kg3 {[%clk 0:00:10]} 53. Be6 {[%clk
0:00:19.9]} 53... Kf2 {[%clk 0:00:09.7]} 54. Nd4 {[%clk 0:00:20.1]} 54... Ba4+
{[%clk 0:00:09.4]} 55. Nb3 {[%clk 0:00:19.8]} 55... f3 {[%clk 0:00:05.3]} 56. d7
{[%clk 0:00:19.4]} 56... Bxd7 {[%clk 0:00:05]} 57. Bxd7 {[%clk 0:00:21.3]} 57...
Ke3 {[%clk 0:00:06.2]} 58. Bd4+ {[%clk 0:00:21.5]} 58... Kd3 {[%clk 0:00:06.8]}
59. Bxf5+ {[%clk 0:00:21.7]} 59... Kc4 {[%clk 0:00:07.4]} 60. Bc2 {[%clk
0:00:16.5]} 60... Bf4 {[%clk 0:00:04.7]} 61. Bf2 {[%clk 0:00:02.7]} 61... Be5
{[%clk 0:00:05.4]} 0-1

[Event "***Titled Tuesday 3|2 Blitz"]
[Site "Chess.com"]
[Date "2017.02.07"]
[Round "6"]
[White "LyonBeast"]
[Black "gmwesley_so"]
[Result "1/2-1/2"]
[WhiteElo "2741"]
[BlackElo "2743"]
[TimeControl "180+2"]
[EndTime "14:28:38 PST"]
[Termination "Game drawn by repetition"]

1. e4 {[%clk 0:03:02]} 1... e5 {[%clk 0:02:56.3]} 2. Nf3 {[%clk 0:03:01.3]} 2...
Nf6 {[%clk 0:02:57.9]} 3. Nxe5 {[%clk 0:02:55.8]} 3... d6 {[%clk 0:02:59.4]} 4.
Nf3 {[%clk 0:02:56.6]} 4... Nxe4 {[%clk 0:03:01]} 5. d3 {[%clk 0:02:57]} 5...
Nf6 {[%clk 0:03:01.9]} 6. d4 {[%clk 0:02:58.7]} 6... d5 {[%clk 0:03:03.4]} 7.
Bd3 {[%clk 0:02:59.5]} 7... Bd6 {[%clk 0:03:04.6]} 8. O-O {[%clk 0:03:00.7]}
8... O-O {[%clk 0:03:06.5]} 9. c3 {[%clk 0:02:59]} 9... Re8 {[%clk 0:03:06.2]}
10. Bg5 {[%clk 0:02:58.1]} 10... h6 {[%clk 0:03:06.2]} 11. Bh4 {[%clk
0:02:59.5]} 11... Nbd7 {[%clk 0:03:04.7]} 12. Re1 {[%clk 0:02:46.9]} 12... Rxe1+
{[%clk 0:03:03.3]} 13. Qxe1 {[%clk 0:02:46.2]} 13... Nf8 {[%clk 0:02:58.3]} 14.
Ne5 {[%clk 0:02:47.2]} 14... Be7 {[%clk 0:02:54.4]} 15. Nd2 {[%clk 0:02:45.1]}
15... c6 {[%clk 0:02:43.4]} 16. Qe2 {[%clk 0:02:42]} 16... Be6 {[%clk
0:02:41.6]} 17. Re1 {[%clk 0:02:37.4]} 17... N6d7 {[%clk 0:02:38.9]} 18. Bxe7
{[%clk 0:02:01.4]} 18... Qxe7 {[%clk 0:02:40.8]} 19. f4 {[%clk 0:02:01.6]} 19...
f6 {[%clk 0:02:28.1]} 20. Nxc6 {[%clk 0:01:38.2]} 20... bxc6 {[%clk 0:02:28.6]}
21. f5 {[%clk 0:01:39.5]} 21... Re8 {[%clk 0:02:24.3]} 22. fxe6 {[%clk
0:01:27.1]} 22... Qxe6 {[%clk 0:02:26.2]} 23. Qxe6+ {[%clk 0:01:27.8]} 23...
Rxe6 {[%clk 0:02:28.1]} 24. Rxe6 {[%clk 0:01:16]} 24... Nxe6 {[%clk 0:02:30]}
25. Nb3 {[%clk 0:01:09.5]} 25... Kf7 {[%clk 0:02:30.7]} 26. Kf2 {[%clk
0:01:09.4]} 26... Ke7 {[%clk 0:02:27.9]} 27. Na5 {[%clk 0:01:10.5]} 27... Kd6
{[%clk 0:02:27.3]} 28. b4 {[%clk 0:01:11.5]} 28... Nb6 {[%clk 0:02:25.1]} 29.
Bc2 {[%clk 0:01:12.7]} 29... Nc7 {[%clk 0:02:22]} 30. Nb7+ {[%clk 0:01:02.5]}
30... Ke7 {[%clk 0:02:21.3]} 31. a4 {[%clk 0:01:02.3]} 31... Nc4 {[%clk
0:02:18.6]} 32. Ke2 {[%clk 0:01:02.8]} 32... Ne6 {[%clk 0:02:15.3]} 33. g3
{[%clk 0:01:00.9]} 33... Ng5 {[%clk 0:02:14.2]} 34. Nc5 {[%clk 0:00:59.5]} 34...
Ne6 {[%clk 0:02:15.5]} 35. Nb7 {[%clk 0:00:42.9]} 35... Nd8 {[%clk 0:02:15.9]}
36. Nc5 {[%clk 0:00:40.2]} 36... Ne6 {[%clk 0:02:16.1]} 37. Nb3 {[%clk
0:00:41.8]} 37... Ng5 {[%clk 0:02:10.9]} 38. g4 {[%clk 0:00:28.1]} 38... Ne6
{[%clk 0:01:56.8]} 39. a5 {[%clk 0:00:28.9]} 39... Nf4+ {[%clk 0:01:54.8]} 40.
Kf3 {[%clk 0:00:30.1]} 40... g5 {[%clk 0:01:56.2]} 41. Nc5 {[%clk 0:00:26.4]}
41... Nd2+ {[%clk 0:01:57.1]} 42. Kf2 {[%clk 0:00:27.8]} 42... Ne6 {[%clk
0:01:51.7]} 43. Nxe6 {[%clk 0:00:26.9]} 43... Kxe6 {[%clk 0:01:53.6]} 44. Ke2
{[%clk 0:00:27.7]} 44... Nc4 {[%clk 0:01:51.3]} 45. Ba4 {[%clk 0:00:23.7]} 45...
Kd6 {[%clk 0:01:48.2]} 46. h3 {[%clk 0:00:23.8]} 46... Kc7 {[%clk 0:01:41]} 47.
Bc2 {[%clk 0:00:21.4]} 47... Nd6 {[%clk 0:01:41.8]} 48. Bd3 {[%clk 0:00:22.2]}
48... Kd7 {[%clk 0:01:42.6]} 49. Kd2 {[%clk 0:00:23.2]} 49... Ke6 {[%clk
0:01:43.9]} 50. Bc2 {[%clk 0:00:17.8]} 50... Nc4+ {[%clk 0:01:13.8]} 51. Ke2
{[%clk 0:00:17.3]} 51... Nd6 {[%clk 0:01:15.2]} 52. Ba4 {[%clk 0:00:16.7]} 52...
Kd7 {[%clk 0:01:10.3]} 53. Bc2 {[%clk 0:00:16.7]} 53... Ke6 {[%clk 0:01:11.4]}
54. Bd3 {[%clk 0:00:12.5]} 54... f5 {[%clk 0:01:00.4]} 55. gxf5+ {[%clk
0:00:13]} 55... Nxf5 {[%clk 0:01:02.3]} 56. b5 {[%clk 0:00:06.9]} 56... cxb5
{[%clk 0:01:00.1]} 57. Bxb5 {[%clk 0:00:08.8]} 57... Nd6 {[%clk 0:01:00.5]} 58.
Bd3 {[%clk 0:00:09.9]} 58... Nb7 {[%clk 0:00:59.9]} 59. a6 {[%clk 0:00:10.9]}
59... Nd6 {[%clk 0:01:01.2]} 60. Kf3 {[%clk 0:00:12.5]} 60... h5 {[%clk
0:00:58.6]} 61. Ke3 {[%clk 0:00:11.1]} 61... Kf6 {[%clk 0:00:58]} 62. Kf3 {[%clk
0:00:12.4]} 62... Ke6 {[%clk 0:00:57.9]} 63. Ke3 {[%clk 0:00:12.9]} 63... Nf5+
{[%clk 0:00:47.5]} 64. Kf3 {[%clk 0:00:13.7]} 64... Ne7 {[%clk 0:00:41]} 65. Ke3
{[%clk 0:00:13.9]} 65... Ng8 {[%clk 0:00:42.3]} 66. Kf3 {[%clk 0:00:14.5]} 66...
Nf6 {[%clk 0:00:43.9]} 67. Bg6 {[%clk 0:00:15.5]} 67... Kd6 {[%clk 0:00:44.5]}
68. Bd3 {[%clk 0:00:14.1]} 68... Kc6 {[%clk 0:00:45.6]} 69. c4 {[%clk
0:00:15.6]} 69... dxc4 {[%clk 0:00:43.9]} 70. Bxc4 {[%clk 0:00:17.5]} 70... Kd6
{[%clk 0:00:43.4]} 71. Bf7 {[%clk 0:00:18]} 71... Ke7 {[%clk 0:00:44.1]} 72. Bc4
{[%clk 0:00:19]} 72... Kd6 {[%clk 0:00:44.2]} 73. Bf7 {[%clk 0:00:19.9]} 73...
Kc6 {[%clk 0:00:44]} 74. Bc4 {[%clk 0:00:20.9]} 74... Kb6 {[%clk 0:00:45.7]} 75.
Ke3 {[%clk 0:00:21.8]} 75... h4 {[%clk 0:00:40.9]} 76. Kf3 {[%clk 0:00:22.6]}
76... Ka5 {[%clk 0:00:41.6]} 77. Ke3 {[%clk 0:00:20.1]} 77... Kb4 {[%clk
0:00:42.9]} 78. Be6 {[%clk 0:00:20.2]} 78... Kb5 {[%clk 0:00:39.3]} 79. Bc8
{[%clk 0:00:21.3]} 79... Kc4 {[%clk 0:00:36.5]} 80. Be6+ {[%clk 0:00:20.5]}
80... Kb5 {[%clk 0:00:38.1]} 81. Bc8 {[%clk 0:00:21.6]} 81... Kb6 {[%clk
0:00:39.1]} 82. Kf3 {[%clk 0:00:19.3]} 82... Kc7 {[%clk 0:00:38.3]} 83. Bb7
{[%clk 0:00:20.4]} 83... Kd6 {[%clk 0:00:38.5]} 84. Ba8 {[%clk 0:00:21.3]} 84...
Kc7 {[%clk 0:00:39.7]} 85. Bb7 {[%clk 0:00:22.4]} 85... Kd6 {[%clk 0:00:41.3]}
86. Ba8 {[%clk 0:00:23.4]} 86... Kc7 {[%clk 0:00:42.9]} 87. Bb7 {[%clk
0:00:24.8]} 87... Kd6 {[%clk 0:00:44.6]} 1/2-1/2

[Event "***Titled Tuesday 3|2 Blitz"]
[Site "Chess.com"]
[Date "2017.02.07"]
[Round "6"]
[White "Lukianoo"]
[Black "ShimanovAlex"]
[Result "0-1"]
[WhiteElo "2603"]
[BlackElo "2658"]
[TimeControl "180+2"]
[EndTime "14:28:40 PST"]
[Termination "ShimanovAlex won on time"]

1. e4 {[%clk 0:03:01.9]} 1... c6 {[%clk 0:03:00]} 2. d4 {[%clk 0:03:00.3]} 2...
d5 {[%clk 0:03:00.5]} 3. Nc3 {[%clk 0:03:00.5]} 3... dxe4 {[%clk 0:03:01.2]} 4.
Nxe4 {[%clk 0:03:02.4]} 4... Bf5 {[%clk 0:03:02.9]} 5. Ng3 {[%clk 0:03:03.5]}
5... Bg6 {[%clk 0:03:04.1]} 6. h4 {[%clk 0:03:05.2]} 6... h6 {[%clk 0:03:04.9]}
7. h5 {[%clk 0:03:05.8]} 7... Bh7 {[%clk 0:03:05.7]} 8. Nf3 {[%clk 0:03:07.4]}
8... e6 {[%clk 0:03:05.9]} 9. Bd3 {[%clk 0:03:08.5]} 9... Bxd3 {[%clk
0:03:06.3]} 10. Qxd3 {[%clk 0:03:10.4]} 10... Nf6 {[%clk 0:03:06.9]} 11. Bd2
{[%clk 0:03:11.3]} 11... Be7 {[%clk 0:03:08.1]} 12. O-O-O {[%clk 0:03:12.2]}
12... O-O {[%clk 0:03:07.4]} 13. Qe2 {[%clk 0:03:08.6]} 13... b5 {[%clk
0:03:03.1]} 14. Nf1 {[%clk 0:03:06.4]} 14... Qd5 {[%clk 0:03:00.9]} 15. Kb1
{[%clk 0:03:06.6]} 15... Nbd7 {[%clk 0:02:50.7]} 16. Ne3 {[%clk 0:03:07.5]}
16... Qe4 {[%clk 0:02:51.3]} 17. Rh4 {[%clk 0:02:51.3]} 17... Qh7 {[%clk
0:02:51.5]} 18. g4 {[%clk 0:02:43.9]} 18... Ne4 {[%clk 0:02:50.6]} 19. Rh3
{[%clk 0:02:44.9]} 19... c5 {[%clk 0:02:40.3]} 20. Bc1 {[%clk 0:02:42.3]} 20...
c4 {[%clk 0:02:36.9]} 21. d5 {[%clk 0:02:36.5]} 21... Nb6 {[%clk 0:02:28]} 22.
dxe6 {[%clk 0:02:32.9]} 22... fxe6 {[%clk 0:02:28.7]} 23. Qe1 {[%clk 0:01:49.6]}
23... a5 {[%clk 0:02:16.8]} 24. Nf1 {[%clk 0:01:48.1]} 24... Bb4 {[%clk
0:02:03]} 25. N1d2 {[%clk 0:01:36.1]} 25... Bxd2 {[%clk 0:01:55.5]} 26. Bxd2
{[%clk 0:01:37.6]} 26... Nd5 {[%clk 0:01:51.3]} 27. Bc1 {[%clk 0:01:28.5]} 27...
Rad8 {[%clk 0:01:43.3]} 28. Rd4 {[%clk 0:01:25.7]} 28... Nc5 {[%clk 0:01:31.5]}
29. Ne5 {[%clk 0:01:23]} 29... Ne7 {[%clk 0:01:17.9]} 30. Qd1 {[%clk 0:01:14.1]}
30... Rd5 {[%clk 0:01:09.5]} 31. Rxd5 {[%clk 0:01:14.7]} 31... exd5 {[%clk
0:01:10.7]} 32. f4 {[%clk 0:01:12.1]} 32... Qe4 {[%clk 0:01:08.1]} 33. Rh1
{[%clk 0:01:03.8]} 33... d4 {[%clk 0:01:01.5]} 34. Re1 {[%clk 0:01:00.4]} 34...
Qd5 {[%clk 0:01:02.5]} 35. g5 {[%clk 0:01:01.4]} 35... hxg5 {[%clk 0:00:55.3]}
36. h6 {[%clk 0:01:01.7]} 36... gxh6 {[%clk 0:00:33.9]} 37. Qh5 {[%clk
0:00:54.2]} 37... d3 {[%clk 0:00:22.7]} 38. Qxh6 {[%clk 0:00:51.1]} 38... dxc2+
{[%clk 0:00:23.7]} 39. Ka1 {[%clk 0:00:52.5]} 39... Rf5 {[%clk 0:00:09.2]} 40.
Rh1 {[%clk 0:00:44.1]} 40... Rxe5 {[%clk 0:00:10.3]} 41. fxe5 {[%clk 0:00:42.3]}
41... Kf7 {[%clk 0:00:11.4]} 42. Qh5+ {[%clk 0:00:37.2]} 42... Ke6 {[%clk
0:00:10.5]} 43. Qg4+ {[%clk 0:00:35.3]} 43... Kf7 {[%clk 0:00:08.5]} 44. e6+
{[%clk 0:00:27.3]} 44... Nxe6 {[%clk 0:00:08.5]} 45. Rf1+ {[%clk 0:00:27.4]}
45... Ke8 {[%clk 0:00:09.4]} 46. Re1 {[%clk 0:00:26.6]} 46... Kd7 {[%clk
0:00:10.5]} 47. Qe2 {[%clk 0:00:19.3]} 47... Nc6 {[%clk 0:00:11.2]} 48. Qxc2
{[%clk 0:00:20.2]} 48... Nb4 {[%clk 0:00:12.5]} 49. Qh7+ {[%clk 0:00:21.1]}
49... Kd6 {[%clk 0:00:13.2]} 50. Qh2+ {[%clk 0:00:18.5]} 50... Kd7 {[%clk
0:00:14.1]} 51. Qh7+ {[%clk 0:00:17.4]} 51... Kd6 {[%clk 0:00:15.3]} 52. Qh2+
{[%clk 0:00:17.9]} 52... Kc6 {[%clk 0:00:15.7]} 53. a3 {[%clk 0:00:15.5]} 53...
Nd3 {[%clk 0:00:16.2]} 54. Rf1 {[%clk 0:00:16.1]} 54... b4 {[%clk 0:00:15.1]}
55. Qh8 {[%clk 0:00:13.7]} 55... Nc7 {[%clk 0:00:14.5]} 56. Qc8 {[%clk
0:00:12.1]} 56... Qe6 {[%clk 0:00:11.7]} 57. Qxe6+ {[%clk 0:00:08.7]} 57... Nxe6
{[%clk 0:00:13.6]} 58. axb4 {[%clk 0:00:09.1]} 58... axb4 {[%clk 0:00:14.6]} 59.
Rf6 {[%clk 0:00:08.9]} 59... Kd5 {[%clk 0:00:15.3]} 60. Bxg5 {[%clk 0:00:09.4]}
60... Nd4 {[%clk 0:00:12.9]} 61. Rf8 {[%clk 0:00:09.3]} 61... c3 {[%clk
0:00:14.1]} 62. bxc3 {[%clk 0:00:07.5]} 62... bxc3 {[%clk 0:00:16]} 63. Ka2
{[%clk 0:00:07.9]} 63... c2 {[%clk 0:00:16.5]} 64. Rd8+ {[%clk 0:00:09.1]} 64...
Ke4 {[%clk 0:00:17]} 65. Rxd4+ {[%clk 0:00:07.7]} 65... Kxd4 {[%clk 0:00:17.9]}
66. Kb3 {[%clk 0:00:09.3]} 66... Ne1 {[%clk 0:00:17.3]} 67. Kb2 {[%clk
0:00:10.2]} 67... Kd3 {[%clk 0:00:18.4]} 68. Bh6 {[%clk 0:00:09.6]} 68... Nf3
{[%clk 0:00:19.6]} 69. Bf4 {[%clk 0:00:10.2]} 69... Nd2 {[%clk 0:00:20.4]} 70.
Kc1 {[%clk 0:00:09.4]} 70... Nc4 {[%clk 0:00:21.3]} 71. Bh6 {[%clk 0:00:09.7]}
71... Kc3 {[%clk 0:00:22.5]} 72. Bg7+ {[%clk 0:00:11]} 72... Kb3 {[%clk
0:00:22.6]} 73. Bh6 {[%clk 0:00:12.1]} 73... Na3 {[%clk 0:00:23.5]} 74. Bg7
{[%clk 0:00:12.9]} 74... Nb5 {[%clk 0:00:24.8]} 75. Bf6 {[%clk 0:00:13.5]} 75...
Nc7 {[%clk 0:00:24.7]} 76. Be5 {[%clk 0:00:14.1]} 76... Nd5 {[%clk 0:00:25.9]}
77. Bg3 {[%clk 0:00:15.2]} 77... Nb4 {[%clk 0:00:26.9]} 78. Bf4 {[%clk
0:00:11.2]} 78... Na2+ {[%clk 0:00:27.8]} 0-1